bitfinex/quotes_ETHUSD_20241116
["timestamp","ask_amount","ask_price","bid_price","bid_amount"]
[1731741908883,3.21132,3114.0,3112.8,0.764]
[1731741908884,0.28984862,3113.6,3113.2,3.2121]
[1731741909132,3.21143,3113.9,3113.2,3.2121]
[1731741909315,3.21143,3113.9,3113.2,3.21208]
[1731741909910,3.21154,3113.8,3113.2,3.21208]
[1731741910109,3.21174,3113.6,3112.8,3.21251]
[1731741910435,3.21213,3113.2,3112.6,3.21266]
[1731741911423,3.21213,3113.2,3112.4,3.21294]
[1731741911831,3.21213,3113.2,3112.5,3.21277]
[1731741912007,6.11040624,3113.4,3112.5,3.21277]
[1731741912224,0.61104062,3113.3,3112.5,3.21277]
[1731741912620,3.21215,3113.2,3112.5,3.21277]
[1731741914721,3.21215,3113.2,3112.6,3.21272]
[1731741915579,3.21215,3113.2,3112.5,3.21277]
[1731741916366,3.21224,3113.1,3112.3,3.21304]
[1731741916667,3.21281,3112.6,3112.0,0.7647]
[1731741916868,3.21281,3112.6,3111.9,3.21341]
[1731741917230,3.21256,3112.8,3111.9,3.21341]
[1731741917434,3.21235,3113.0,3112.3,3.21297]
[1731741917768,3.21235,3113.0,3112.3,3.98557]
[1731741918072,3.21245,3112.9,3112.3,3.98557]
[1731741918230,3.21245,3112.9,3112.3,0.7726]
[1731741918575,3.21283,3112.6,3111.9,3.21345]
[1731741919265,3.21275,3112.6,3111.9,3.21345]
[1731741920328,3.21275,3112.6,3111.8,3.0]
[1731741920540,3.21275,3112.6,3112.0,3.21336]
[1731741920925,3.21287,3112.5,3111.9,3.0]
[1731741921133,3.21295,3112.4,3111.9,3.0]
[1731741921432,3.21295,3112.4,3111.7,6.98626]
[1731741922941,8.92,3113.4,3111.4,3.21395]
[1731741922942,2.89848624,3112.5,3111.4,3.21395]
[1731741923148,3.21333,3112.1,3111.4,3.21395]
[1731741923456,3.21358,3111.8,3111.2,3.21416]
[1731741924229,3.21358,3111.8,3111.3,3.0]
[1731741924461,3.21332,3112.1,3111.3,3.0]
[1731741924673,3.21341,3112.0,3111.4,3.21389]
[1731741924833,3.21348,3111.9,3111.3,3.0]
[1731741925260,3.21358,3111.8,3111.3,3.0]
[1731741925456,3.21348,3111.9,3111.3,3.0]
[1731741926047,3.21348,3111.9,3111.2,3.0]
[1731741926370,3.21328,3112.1,3111.4,3.21396]
[1731741926557,3.21336,3112.0,3111.4,3.21396]
[1731741927075,3.21354,3111.9,3111.3,3.21408]
[1731741927366,3.21354,3111.9,3111.2,6.21417]
[1731741927575,3.21354,3111.9,3111.3,3.21407]
[1731741928674,2.89848624,3111.6,3110.6,3.2148]
[1731741928864,3.21409,3111.3,3110.6,3.21471]
[1731741929074,3.21409,3111.3,3110.7,3.21469]
[1731741929579,3.21409,3111.3,3110.5,3.21491]
[1731741929986,3.21409,3111.3,3110.6,3.21479]
[1731741930558,3.21409,3111.3,3110.7,3.2147]
[1731741931587,3.21429,3111.2,3110.5,3.21491]
[1731741932684,3.21409,3111.3,3110.6,3.2148]
[1731741932848,2.89848624,3111.6,3110.4,0.7726]
[1731741933054,3.2143,3111.1,3110.4,3.98754]
[1731741934093,3.2144,3111.0,3110.4,3.98754]
[1731741934393,3.2144,3111.0,3110.4,0.7726]
[1731741936165,3.21452,3110.9,3110.4,0.7726]
[1731741936366,0.642862,3111.0,3110.4,3.98752]
[1731741936563,3.21436,3111.1,3110.4,3.98752]
[1731741937819,3.21436,3111.1,3109.4,0.13293167]
[1731741938019,2.89848624,3111.6,3110.0,3.21539]
[1731741938020,2.89848624,3110.7,3110.0,3.21539]
[1731741938174,3.21491,3110.5,3109.6,3.21581]
[1731741938381,3.21514,3110.3,3109.7,3.21573]
[1731741939074,3.21514,3110.3,3109.5,3.98344]
[1731741939075,3.2153,3110.2,3109.5,0.7675]
[1731741939426,3.21502,3110.4,3109.5,0.7675]
[1731741939577,3.21502,3110.4,3109.7,3.21565]
[1731741939779,3.21492,3110.5,3109.6,3.21584]
[1731741939977,2.89848624,3110.7,3108.9,0.28482157]
[1731741939978,2.89848624,3110.3,3108.9,0.14857955]
[1731741940224,3.21561,3109.9,3108.9,0.93187955]
[1731741940406,3.21582,3109.7,3109.0,3.21643]
[1731741941075,3.21603,3109.5,3108.9,0.14857955]
[1731741941232,0.643185,3109.5,3108.9,3.36512955]
[1731741941379,3.21565,3109.8,3109.1,3.21633]
[1731741941823,3.21565,3109.8,3108.9,3.36512955]
[1731741941982,0.321565,3109.7,3109.0,3.21643]
[1731741942179,3.21576,3109.7,3108.9,3.36512955]
[1731741942423,3.21554,3109.9,3108.9,0.14857955]
[1731741942726,0.28984862,3110.2,3109.0,0.7833]
[1731741942911,3.2154,3110.1,3109.2,3.21621]
[1731741943116,3.2155,3110.0,3109.2,3.21621]
[1731741943325,3.21555,3109.9,3109.2,3.21621]
[1731741943842,3.2154,3110.1,3109.4,3.21597]
[1731741944132,0.61138862,3110.0,3109.4,3.21597]
[1731741944286,3.21514,3110.3,3109.4,3.21597]
[1731741944480,3.21514,3110.3,3109.6,3.21575]
[1731741944714,3.21481,3110.7,3109.6,0.7833]
[1731741944930,4.14760862,3110.7,3110.0,3.21535]
[1731741945832,4.14760862,3110.7,3110.0,3.21533]
[1731741946402,4.14760862,3110.7,3110.1,3.21532]
[1731741947200,0.70460949,3110.6,3110.1,3.21532]
[1731741947699,2.89848624,3110.4,3109.8,3.2156]
[1731741947901,3.21566,3109.8,3109.2,3.0]
[1731741948101,3.21566,3109.8,3109.1,3.21628]
[1731741948300,3.858772,3109.8,3109.1,3.21628]
[1731741950022,3.858772,3109.8,3109.2,3.21624]
[1731741950608,0.643112,3109.8,3109.3,3.21615]
[1731741950851,3.21546,3110.0,3109.3,3.21615]
[1731741951554,6.11352624,3110.4,3109.4,3.21605]
[1731741951719,3.21524,3110.2,3109.4,3.21605]
[1731741952347,3.21547,3110.0,3109.4,3.21605]
[1731741952647,3.21547,3110.0,3109.2,3.21625]
[1731741952648,3.21564,3109.8,3109.2,3.21625]
[1731741953143,3.18864,3109.8,3109.2,3.21625]
[1731741953847,6.11395624,3110.0,3109.2,3.21625]
[1731741954159,0.61139562,3109.9,3109.2,3.21625]
[1731741954861,3.82696562,3109.9,3109.2,3.21625]
[1731741955162,3.82696562,3109.9,3109.1,3.0]
[1731741955163,0.61139562,3109.9,3109.1,3.0]
[1731741955314,3.21571,3109.8,3109.1,6.21634]
[1731741956101,3.21545,3110.0,3109.2,3.21616]
[1731741956260,3.21565,3109.8,3109.2,3.21616]
[1731741957114,3.21545,3110.0,3109.3,3.21608]
[1731741957310,3.536995,3110.0,3109.4,3.21603]
[1731741958248,3.536995,3110.0,3109.4,4.01333]
[1731741958249,0.321545,3110.0,3109.4,4.01333]
[1731741958457,3.21523,3110.2,3109.5,3.21594]
[1731741958620,4.42257392,3110.3,3109.2,3.21626]
[1731741958621,0.61135262,3110.3,3109.2,3.21626]
[1731741958827,3.21473,3110.7,3109.7,0.7973]
[1731741959110,3.21473,3110.7,3110.0,3.21539]
[1731741959614,3.21473,3110.7,3110.1,3.21529]
[1731741959820,3.21473,3110.7,3110.0,3.21539]
[1731741960238,3.21492,3110.5,3109.9,3.2155]
[1731741960439,3.21473,3110.7,3110.0,3.21542]
[1731741960440,6.42951,3110.7,3110.0,3.21542]
[1731741960961,3.21493,3110.5,3109.9,0.401292]
[1731741961126,3.21502,3110.4,3109.8,3.21562]
[1731741961325,3.21474,3110.7,3109.8,3.21562]
[1731741961557,3.536354,3110.6,3109.9,3.21552]
[1731741961759,3.21488,3110.6,3109.9,3.21552]
[1731741962121,3.21474,3110.7,3110.0,3.21535]
[1731741962662,3.21482,3110.6,3110.0,3.21535]
[1731741962862,3.21474,3110.7,3109.8,3.21562]
[1731741962863,3.21498,3110.5,3109.8,3.21562]
[1731741963064,0.321474,3110.6,3109.1,0.7973]
[1731741963240,3.21529,3110.2,3109.5,3.21594]
[1731741963441,3.21504,3110.4,3109.8,3.21564]
[1731741963929,3.21455,3110.9,3109.9,3.21553]
[1731741964132,3.21477,3110.7,3110.1,3.21526]
[1731741964779,3.21454,3110.9,3110.2,3.21517]
[1731741965287,3.21454,3110.9,3110.3,3.21504]
[1731741967166,3.21454,3110.9,3110.1,3.21526]
[1731741967167,3.21468,3110.8,3110.1,3.21526]
[1731741967371,3.536134,3110.8,3110.1,3.21526]
[1731741967556,3.536134,3110.8,3110.2,3.2152]
[1731741969157,3.21468,3110.8,3110.2,3.2152]
[1731741969989,3.21468,3110.8,3110.1,3.2153]
[1731741970130,3.21471,3110.7,3110.1,3.2153]
[1731741970443,3.21456,3110.9,3110.2,3.21522]
[1731741970828,3.21465,3110.8,3110.2,3.21522]
[1731741971272,3.21472,3110.7,3110.0,6.43079]
[1731741971433,3.21465,3110.8,3110.1,3.21531]
[1731741971635,3.57422721,3110.8,3110.2,3.21521]
[1731741974069,3.21465,3110.8,3110.2,3.21521]
[1731741977279,3.21487,3110.6,3110.0,3.0]
[1731741978675,3.21487,3110.6,3110.1,3.21532]
[1731741979706,3.21487,3110.6,3110.0,3.0]
[1731741979985,3.771822,3110.6,3110.0,3.0]
[1731741981284,3.771822,3110.6,3110.0,6.21543]
[1731741981653,3.771822,3110.6,3110.0,3.0]
[1731741982403,3.771822,3110.6,3109.8,3.7973]
[1731741982607,3.21503,3110.4,3109.8,4.01293]
[1731741982908,2.90121429,3110.4,3109.3,3.21608]
[1731741983092,3.21572,3109.8,3109.2,3.21618]
[1731741983266,3.21579,3109.7,3109.1,0.8053]
[1731741983475,3.21579,3109.7,3109.1,4.02164]
[1731741984710,3.21579,3109.7,3109.2,3.0]
[1731741986817,3.21587,3109.6,3109.0,3.0]
[1731741988103,3.21596,3109.5,3109.0,3.0]
[1731741988304,3.21579,3109.7,3109.0,6.21645]
[1731741988652,3.21579,3109.7,3109.0,3.0]
[1731741988930,3.82755043,3109.6,3109.0,3.0]
[1731741989290,0.61170043,3109.6,3109.0,6.21644]
[1731741989488,3.21579,3109.7,3109.0,6.21644]
[1731741989689,3.21556,3109.9,3109.0,6.21644]
[1731741990206,3.21556,3109.9,3109.3,3.21615]
[1731741992138,2.90121429,3109.7,3109.0,6.21644]
[1731741992292,2.90121429,3109.7,3109.0,3.21644]
[1731741992500,0.61169043,3109.6,3109.0,3.21644]
[1731741992709,2.90121429,3109.7,3109.0,3.21644]
[1731741993393,6.11703429,3109.7,3108.9,3.36510955]
[1731741993849,3.21602,3109.5,3108.9,0.14857955]
[1731741994152,0.321602,3109.4,3108.9,0.14857955]
[1731741995153,0.321602,3109.4,3108.9,3.36511955]
[1731741995961,0.321602,3109.4,3108.9,0.14857955]
[1731741995962,2.90121429,3109.1,3108.9,0.14857955]
[1731741996803,6.11727429,3109.4,3108.9,0.14857955]
[1731741997236,3.21623,3109.3,3108.9,0.14857955]
[1731741997511,2.90121429,3109.7,3108.9,4.17233955]
[1731741997718,6.11726429,3109.4,3108.9,0.95577955]
[1731741997867,3.21618,3109.3,3108.9,0.14857955]
[1731741998067,3.82790643,3109.3,3108.9,0.14857955]
[1731741998314,0.61172643,3109.3,3108.9,0.14857955]
[1731741998512,3.21629,3109.2,3108.9,0.14857955]
[1731741999605,3.21624,3109.3,3108.9,0.14857955]
[1731742001423,3.21628,3109.2,3108.9,0.14857955]
[1731742002721,3.21637,3109.1,3108.9,0.14857955]
[1731742003017,2.90121429,3109.1,3108.9,0.14857955]
[1731742008625,2.90121429,3109.4,3108.9,0.14857955]
[1731742008779,3.51293572,3109.4,3108.9,0.14857955]
[1731742009612,3.51293572,3109.4,3108.9,3.36507955]
[1731742012132,6.72898572,3109.4,3108.9,3.36507955]
[1731742012344,6.11726429,3109.4,3108.9,3.36507955]
[1731742013540,2.90121429,3109.4,3108.9,3.36507955]
[1731742014344,3.21583,3109.7,3108.9,3.36507955]
[1731742014494,2.90121429,3109.7,3109.3,3.21612]
[1731742014698,0.321583,3109.6,3109.3,3.21612]
[1731742015238,2.90121429,3109.7,3109.3,3.21612]
[1731742016530,2.90121429,3109.7,3109.5,4.03572]
[1731742018200,2.90121429,3109.7,3109.6,3.21584]
[1731742018402,2.90121429,3110.0,3109.6,3.21584]
[1731742018609,2.90121429,3110.0,3109.7,3.21573]
[1731742021511,2.90121429,3110.0,3109.6,3.21584]
[1731742022570,2.90121429,3110.0,3109.5,4.03573]
[1731742022768,2.90121429,3110.0,3109.5,0.8198]
[1731742022966,2.90121429,3110.0,3109.6,3.21584]
[1731742023411,2.90121429,3110.0,3109.7,3.21574]
[1731742025899,3.21457,3110.9,3110.3,3.21505]
[1731742026096,2.90121429,3110.8,3110.4,0.8198]
[1731742026355,3.19133572,3110.8,3110.4,0.8198]
[1731742026640,2.90121429,3111.1,3110.6,3.21481]
[1731742028524,2.90121429,3111.1,3110.5,3.2149]
[1731742029430,2.90121429,3111.1,3110.4,4.03475]
[1731742029431,2.90121429,3111.1,3110.6,3.21478]
[1731742029632,2.90121429,3111.1,3110.7,3.21462]
[1731742029833,6.11522429,3111.4,3110.8,3.21453]
[1731742030143,6.11522429,3111.4,3110.7,3.21462]
[1731742031740,6.11522429,3111.4,3110.6,3.21481]
[1731742031900,2.90121429,3111.4,3110.9,0.8142]
[1731742032401,6.11495429,3111.7,3110.9,4.02869]
[1731742032607,6.11495429,3111.7,3111.1,3.21429]
[1731742033743,2.90121429,3111.7,3111.2,3.21417]
[1731742034242,2.90121429,3111.7,3111.3,3.21402]
[1731742034604,2.90121429,3111.7,3111.4,0.8142]
[1731742034804,5.90121429,3112.0,3111.4,0.8142]
[1731742035011,6.75784693,3112.0,3111.4,4.02817]
[1731742036161,3.54447693,3112.0,3111.5,3.21386]
[1731742036708,2.90121429,3112.0,3111.5,3.21386]
[1731742037732,2.90121429,3112.0,3111.6,3.21377]
[1731742037931,6.11430429,3112.3,3111.6,3.21377]
[1731742039316,2.90121429,3112.3,3111.9,0.8142]
[1731742040331,6.11427429,3112.3,3111.9,0.8142]
[1731742041666,2.90121429,3112.3,3111.9,0.8142]
[1731742042170,6.11429429,3112.3,3111.6,0.7658]
[1731742042317,6.11429429,3112.3,3110.6,3.35400298]
[1731742042318,2.90121429,3111.7,3110.6,0.7658]
[1731742042660,3.21421,3111.2,3110.6,0.7658]
[1731742042858,2.90121429,3111.3,3110.7,3.21469]
[1731742043043,6.11532429,3111.3,3110.7,3.2147]
[1731742043446,2.90121429,3111.3,3110.8,3.21459]
[1731742043653,2.90121429,3111.6,3110.8,0.7593153]
[1731742043828,2.90121429,3111.6,3111.0,3.21439]
[1731742044023,11.82121429,3111.9,3111.3,0.7658]
[1731742044241,2.90121429,3111.9,3111.3,3.97988]
[1731742044446,2.90121429,3111.9,3111.4,3.21394]
[1731742045168,2.90121429,3111.9,3111.4,3.21397]
[1731742045668,2.90121429,3111.9,3111.3,3.97987]
[1731742046670,3.51268072,3111.9,3111.3,3.97987]
[1731742046873,3.21361,3111.8,3111.3,0.7658]
[1731742047024,3.21361,3111.8,3111.1,3.98625]
[1731742047230,3.21391,3111.5,3110.9,3.2145]
[1731742047733,6.11509429,3111.6,3110.9,3.2145]
[1731742048423,6.11509429,3111.6,3110.8,3.98659]
[1731742048641,2.90121429,3111.3,3110.8,0.772]
[1731742048829,0.29012143,3111.2,3110.6,0.772]
[1731742049030,2.90121429,3111.3,3110.6,0.772]
[1731742049476,3.21419,3111.2,3110.6,3.98674]
[1731742049830,2.90121429,3111.3,3110.6,0.772]
[1731742050173,2.90121429,3111.3,3110.7,3.21469]
[1731742050788,6.11531429,3111.3,3110.7,3.21469]
[1731742051353,3.21419,3111.2,3110.6,0.772]
[1731742051777,3.21419,3111.2,3110.6,3.98679]
[1731742052678,2.90121429,3111.3,3110.6,3.98679]
[1731742052865,6.11532429,3111.3,3110.6,3.98679]
[1731742055645,6.11532429,3111.3,3110.7,3.21469]
[1731742055849,3.21411,3111.3,3110.7,3.21469]
[1731742057282,6.11499429,3111.6,3111.0,3.21439]
[1731742057492,6.11499429,3111.6,3111.1,0.782]
[1731742058085,2.90121429,3111.6,3111.1,3.99628]
[1731742058676,3.0,3111.8,3111.1,3.99628]
[1731742058836,6.11474429,3111.9,3111.3,3.21408]
[1731742058837,7.62808429,3111.9,3111.3,3.21408]
[1731742059037,6.11474429,3111.9,3111.3,3.21408]
[1731742059277,6.21319,3112.2,3111.3,3.21408]
[1731742059485,6.21337,3112.0,3111.4,0.782]
[1731742060996,6.21337,3112.0,3111.4,3.99597]
[1731742061759,3.21338,3112.0,3111.4,0.782]
[1731742061976,3.21338,3112.0,3111.4,3.99598]
[1731742062552,3.55154543,3112.1,3111.5,3.21387]
[1731742062846,6.76480543,3112.1,3111.5,3.21387]
[1731742063360,6.11447429,3112.1,3111.5,3.21387]
[1731742063565,6.11447429,3112.1,3111.4,3.99598]
[1731742067649,3.2134,3112.0,3111.4,0.782]
[1731742067852,3.21374,3111.7,3111.1,0.782]
[1731742068045,2.90121429,3111.8,3111.2,3.21416]
[1731742069506,6.11488429,3111.8,3111.2,3.21416]
[1731742070689,6.11488429,3111.8,3111.1,0.782]
[1731742070895,3.21391,3111.5,3111.1,0.782]
[1731742071098,3.21378,3111.6,3111.1,0.782]
[1731742071251,3.21389,3111.5,3111.1,0.782]
[1731742073716,3.2138,3111.6,3111.1,0.782]
[1731742074012,6.72630272,3111.8,3111.1,3.99629]
[1731742074624,6.11481429,3111.8,3111.2,3.21411]
[1731742075169,6.11481429,3111.8,3111.1,3.99629]
[1731742075516,3.21389,3111.5,3111.1,0.782]
[1731742075811,0.321389,3111.4,3111.1,0.782]
[1731742076013,3.21389,3111.5,3111.1,0.782]
[1731742076589,3.21369,3111.7,3111.1,3.99627]
[1731742077476,3.21379,3111.6,3111.1,3.99627]
[1731742079217,3.21379,3111.6,3111.1,0.782]
[1731742080990,3.21398,3111.4,3111.1,0.782]
[1731742081182,1.3383976,3111.3,3111.1,0.782]
[1731742082695,4.5525476,3111.3,3110.7,0.7903]
[1731742082929,1.3383976,3111.0,3110.7,4.005]
[1731742083478,1.3383976,3111.2,3110.7,4.005]
[1731742085576,1.3383976,3111.2,3110.7,0.7903]
[1731742085977,1.3383976,3111.0,3110.7,0.7903]
[1731742086480,1.3383976,3111.0,3110.7,4.005]
[1731742090230,1.3383976,3110.8,3109.3,0.3355085]
[1731742090530,1.3383976,3109.7,3109.2,4.00807]
[1731742090726,4.5541676,3109.7,3109.2,0.7919]
[1731742091425,1.3383976,3109.4,3109.2,0.7919]
[1731742092785,3.21577,3109.7,3109.2,0.7919]
[1731742096241,3.21577,3109.7,3108.9,0.14857955]
[1731742096242,3.21583,3109.7,3108.9,0.14857955]
[1731742096442,2.90359715,3109.9,3109.0,3.21644]
[1731742096443,3.21566,3109.8,3109.0,3.21644]
[1731742096746,3.50601972,3109.8,3109.0,3.21644]
[1731742097046,3.50601972,3109.8,3109.1,3.21632]
[1731742097200,3.50600972,3109.8,3109.1,3.21632]
[1731742097400,3.50600972,3109.8,3109.1,3.2163]
[1731742097740,3.50600972,3109.8,3108.9,3.36512955]
[1731742097741,3.21595,3109.5,3108.9,3.36512955]
[1731742098236,3.85673069,3109.7,3109.0,3.21645]
[1731742101440,0.64096069,3109.7,3109.0,3.21645]
[1731742101851,3.85670069,3109.7,3109.1,3.21628]
[1731742102832,3.85670069,3109.7,3109.2,3.21624]
[1731742102833,0.64096069,3109.7,3109.2,3.21624]
[1731742103039,0.29035972,3109.8,3109.3,0.7919]
[1731742103483,0.29035972,3109.8,3109.3,4.00805]
[1731742104443,3.21559,3109.9,3109.3,4.00805]
[1731742104801,5.90359715,3110.0,3109.3,0.7919]
[1731742104945,3.21554,3109.9,3109.3,0.7919]
[1731742105146,3.21554,3109.9,3109.3,4.00805]
[1731742105888,2.90359715,3110.3,3109.6,3.2158]
[1731742106074,2.90359715,3110.3,3109.8,3.21556]
[1731742106747,2.90359715,3110.3,3109.6,3.2158]
[1731742106992,6.11872715,3110.3,3109.6,3.2158]
[1731742107191,7.05210187,3110.3,3109.6,3.2158]
[1731742107391,7.05210187,3110.3,3109.4,3.21601]
[1731742107392,2.90359715,3110.0,3109.4,3.21601]
[1731742108722,3.21525,3110.2,3109.4,0.06431522]
[1731742108921,2.90359715,3110.2,3109.7,3.21571]
[1731742109107,2.90359715,3110.5,3109.8,4.00744]
[1731742109300,7.09522984,3110.5,3109.8,4.00744]
[1731742109724,3.88030984,3110.5,3109.9,3.21547]
[1731742110330,6.11821715,3110.8,3110.1,3.21532]
[1731742110650,6.11821715,3110.8,3110.2,0.7771]
[1731742110805,2.90359715,3110.8,3110.3,3.21511]
[1731742111001,2.90359715,3110.8,3110.2,3.99229]
[1731742111002,6.11822715,3110.8,3110.2,3.99229]
[1731742111603,3.0,3110.9,3110.2,3.99229]
[1731742111872,3.0,3110.9,3110.5,3.2149]
[1731742112016,5.90359715,3111.0,3110.5,3.2149]
[1731742112408,5.90359715,3111.0,3110.6,3.21481]
[1731742114256,5.90359715,3111.0,3110.4,3.21501]
[1731742114547,5.90359715,3111.0,3110.2,1.176329]
[1731742114749,5.90359715,3111.0,3110.3,3.21512]
[1731742114950,9.11799715,3111.0,3110.3,3.21512]
[1731742115655,3.21458,3110.9,3110.2,3.99231]
[1731742115950,4.44783772,3110.9,3110.2,3.99232]
[1731742118024,1.23325772,3110.9,3110.3,3.21509]
[1731742118234,1.23325772,3110.9,3110.4,3.21498]
[1731742118957,4.44777772,3110.9,3110.2,3.99229]
[1731742119157,0.99867574,3110.8,3110.2,3.99229]
[1731742120869,0.99867574,3110.8,3110.3,3.21511]
[1731742121863,3.0,3111.0,3110.4,3.21497]
[1731742122071,9.11800715,3111.0,3110.3,3.21511]
[1731742122523,0.65740129,3111.6,3110.8,3.21454]
[1731742122725,2.90359715,3111.6,3111.0,3.21439]
[1731742123319,0.29035972,3111.5,3111.0,3.21439]
[1731742125457,2.90359715,3111.6,3111.2,3.21411]
[1731742125674,2.90359715,3111.6,3111.1,3.21429]
[1731742126260,2.90359715,3111.6,3111.2,3.21415]
[1731742126589,2.90359715,3111.9,3111.5,0.783]
[1731742126792,3.0,3112.1,3111.6,3.21377]
[1731742127020,5.90359715,3112.1,3111.6,3.21377]
[1731742127326,6.81527287,3112.1,3111.6,3.21377]
[1731742128108,6.81527287,3112.1,3111.7,3.21363]
[1731742128275,2.90359715,3112.1,3111.9,3.21346]
[1731742128460,3.21257,3112.8,3111.9,3.21344]
[1731742128461,2.90359715,3112.4,3111.9,3.21344]
[1731742128664,2.90359715,3112.4,3112.1,3.21318]
[1731742128904,2.90359715,3112.4,3112.1,3.99618]
[1731742130274,3.0,3112.6,3112.1,3.99618]
[1731742130492,0.321264,3112.6,3112.1,0.783]
[1731742130682,3.534084,3112.6,3112.1,0.783]
[1731742131665,3.21288,3112.5,3112.1,0.783]
[1731742131920,3.534084,3112.6,3112.1,0.783]
[1731742132205,3.21286,3112.5,3112.1,0.783]
[1731742132365,3.21295,3112.4,3112.1,0.783]
[1731742134989,3.21282,3112.6,3112.1,0.783]
[1731742135232,2.90359715,3112.7,3112.1,0.783]
[1731742135530,3.21235,3113.0,3112.2,3.21316]
[1731742135692,3.21235,3113.0,3112.3,3.27723256]
[1731742135891,3.21235,3113.0,3112.4,0.8063]
[1731742136221,3.21235,3113.0,3112.4,4.01923]
[1731742137505,3.21235,3113.0,3112.4,0.8063]
[1731742137883,3.21235,3113.0,3112.4,4.01924]
[1731742138082,3.21235,3113.0,3112.4,4.4611256]
[1731742138312,3.21235,3113.0,3112.4,1.2481856]
[1731742139598,3.21243,3112.9,3112.4,1.2481856]
[1731742139811,2.90359715,3112.7,3112.1,0.8063]
[1731742140109,6.11633715,3112.7,3112.1,0.8063]
[1731742140319,6.11633715,3112.7,3112.1,1.208276]
[1731742140909,3.21274,3112.6,3112.1,1.208276]
[1731742141114,2.90359715,3112.7,3112.1,1.208276]
[1731742141426,3.21335,3112.1,3111.4,0.8063]
[1731742141719,3.21353,3111.9,3111.4,0.8063]
[1731742141918,3.21353,3111.9,3111.4,1.208347]
[1731742145539,3.21326,3112.1,3111.4,1.208347]
[1731742145745,3.21326,3112.1,3111.4,4.422317]
[1731742146217,3.21338,3112.0,3111.4,4.422317]
[1731742146807,2.90359715,3112.2,3111.4,4.422317]
[1731742147052,3.21296,3112.4,3111.6,3.21377]
[1731742147340,2.90359715,3112.5,3111.8,3.21349]
[1731742147504,3.21276,3112.6,3112.0,3.21328]
[1731742149043,6.11615715,3112.8,3112.1,4.06323881]
[1731742149530,3.21266,3112.7,3112.1,0.85005881]
[1731742150131,6.11615715,3112.8,3112.1,4.06329881]
[1731742150364,6.11615715,3112.8,3112.1,4.46963269]
[1731742150647,3.21265,3112.7,3112.1,4.46963269]
[1731742151400,6.11615715,3112.8,3112.1,4.46963269]
[1731742152142,3.21264,3112.7,3112.1,4.46963269]
[1731742153500,3.21264,3112.7,3112.1,4.40537388]
[1731742153700,3.21264,3112.7,3112.1,0.7858]
[1731742153927,3.21293,3112.5,3112.1,0.7858]
[1731742154728,6.11652715,3112.5,3111.8,0.8261]
[1731742154933,2.90359715,3112.5,3112.0,3.21335]
[1731742155511,3.21275,3112.6,3112.0,3.938632]
[1731742155754,3.21268,3112.7,3112.1,3.21325]
[1731742156920,3.21268,3112.7,3112.1,3.27750885]
[1731742157335,3.21268,3112.7,3112.1,3.21325]
[1731742157535,3.21275,3112.6,3112.0,0.725282]
[1731742158403,3.21294,3112.5,3111.9,3.21337]
[1731742160147,3.21299,3112.4,3111.8,4.03965]
[1731742160850,3.21323,3112.2,3111.8,0.8261]
[1731742162522,2.90359715,3112.5,3111.8,1.23651376]
[1731742162728,3.21281,3112.6,3111.9,3.2134]
[1731742163034,3.21281,3112.6,3112.0,3.21336]
[1731742165139,6.11614715,3112.8,3112.0,3.21336]
[1731742165360,6.11614715,3112.8,3112.2,3.21306]
[1731742166459,3.21265,3112.7,3112.1,1.147436]
[1731742168269,3.21265,3112.7,3112.1,0.8261]
[1731742168444,3.21282,3112.6,3112.1,0.8261]
[1731742168761,3.21296,3112.4,3112.1,0.8261]
[1731742169113,6.42566,3112.6,3112.1,0.8261]
[1731742169314,3.21286,3112.5,3112.1,0.8261]
[1731742170059,3.21282,3112.6,3112.1,0.8261]
[1731742170866,3.21298,3112.4,3112.1,0.8261]
[1731742172118,3.85556,3112.4,3111.3,3.21406]
[1731742172331,6.11682715,3112.2,3111.5,3.21381]
[1731742172620,6.11682715,3112.2,3111.3,3.21406]
[1731742172965,2.90359715,3111.9,3111.3,3.21406]
[1731742173319,6.11706715,3111.9,3111.3,3.21406]
[1731742173926,2.90359715,3111.9,3111.3,3.21406]
[1731742174270,2.90359715,3112.2,3111.5,3.21385]
[1731742174563,6.11677715,3112.2,3111.5,3.21385]
[1731742176159,3.2133,3112.1,3111.5,3.21385]
[1731742179083,2.90359715,3112.2,3111.8,3.21356]
[1731742179239,3.21296,3112.4,3111.8,3.21356]
[1731742180434,3.21309,3112.3,3111.6,4.04242]
[1731742181035,3.2132,3112.2,3111.6,0.8287]
[1731742181440,3.21309,3112.3,3111.6,4.04245]
[1731742181685,3.82475871,3112.3,3111.6,4.04245]
[1731742182080,3.21333,3112.1,3111.6,0.8287]
[1731742182257,6.11712715,3111.9,3111.3,0.782]
[1731742184486,7.05016887,3111.9,3111.3,0.782]
[1731742187489,3.21368,3111.7,3111.3,0.782]
[1731742190767,1.33837598,3111.6,3111.3,0.782]
[1731742191366,1.33837598,3111.8,3111.3,0.782]
[1731742191668,4.55195598,3111.8,3111.3,0.782]
[1731742193095,1.33837598,3111.8,3111.3,0.782]
[1731742193557,4.55198598,3111.8,3111.3,0.782]
[1731742193756,1.33837598,3111.8,3111.3,0.782]
[1731742194294,1.33837598,3111.8,3111.3,3.99607]
[1731742194498,4.55195598,3111.8,3111.3,0.782]
[1731742198695,1.33837598,3111.6,3111.3,0.782]
[1731742198900,4.55217598,3111.6,3111.3,0.782]
[1731742199779,1.33837598,3111.6,3111.3,0.782]
[1731742200403,4.55195598,3111.8,3111.3,0.782]
[1731742201022,1.33837598,3111.8,3111.3,0.782]
[1731742201180,0.61166871,3112.3,3111.3,0.782]
[1731742201384,0.61166871,3112.3,3111.8,0.8057]
[1731742201596,1.33837598,3112.1,3111.8,0.8057]
[1731742202472,4.55164598,3112.1,3111.8,0.8057]